{"text_format":"3","workbook":"xlsx","n_sheets":1,"sheets":["Mjesečni obiteljski proračun"],"not_rendered":{"defined_names":1},"read":"whole","date_system":"1900"}

{"sheet":"Mjesečni obiteljski proračun","index":0,"n_rows":68,"n_cols":9,"rows_kept":68,"merged":[[0,0,0,6],[2,0,2,1],[2,5,2,6],[8,5,8,6],[18,0,18,3],[27,5,27,8],[29,0,29,3],[36,0,36,3],[37,5,37,8],[42,0,42,3],[44,5,44,8],[54,0,54,3],[54,5,54,8],[61,0,61,3],[62,5,62,8]]}
["Mjesečni obiteljski proračun"]
[]
["Ukupni planirani troškovi",null,"Ukupni stvarni troškovi","Razlika",null,"Planirani mjesečni prihod"]
[null,{"$f":"Kućanstvo[[#Totals],[Predviđeni trošak]]+Prijevoz[[#Totals],[Predviđeni trošak]]+Osiguranje[[#Totals],[Predviđeni trošak]]+Hrana[[#Totals],[Predviđeni trošak]]+Djeca[[#Totals],[Predviđeni trošak]]+Pravni_savjeti[[#Totals],[Predviđeni trošak]]+Pravni_savjeti[[#Totals],[Predviđeni trošak]]+Zajmovi[[#Totals],[Predviđeni trošak]]+Zabava[[#Totals],[Predviđeni trošak]]+Porezi[[#Totals],[Predviđeni trošak]]+Osobna_njega[[#Totals],[Predviđeni trošak]]+Ljubimci[[#Totals],[Predviđeni trošak]]+Darovi[[#Totals],[Predviđeni trošak]]","v":{"v":1203,"d":"1,203.00 kn"}},{"$f":"Kućanstvo[[#Totals],[Stvarni trošak]]+Prijevoz[[#Totals],[Stvarni trošak]]+Osiguranje[[#Totals],[Stvarni trošak]]+Hrana[[#Totals],[Stvarni trošak]]+Djeca[[#Totals],[Stvarni trošak]]+Pravni_savjeti[[#Totals],[Stvarni trošak]]+Pravni_savjeti[[#Totals],[Stvarni trošak]]+Zajmovi[[#Totals],[Stvarni trošak]]+Zabava[[#Totals],[Stvarni trošak]]+Porezi[[#Totals],[Stvarni trošak]]+Osobna_njega[[#Totals],[Stvarni trošak]]+Ljubimci[[#Totals],[Stvarni trošak]]+Darovi[[#Totals],[Stvarni trošak]]","v":{"v":1317,"d":"1,317.00 kn"}},{"$f":"Kućanstvo[[#Totals],[Razlika]]+Prijevoz[[#Totals],[Razlika]]+Osiguranje[[#Totals],[Razlika]]+Hrana[[#Totals],[Razlika]]+Djeca[[#Totals],[Razlika]]+Pravni_savjeti[[#Totals],[Razlika]]+Pravni_savjeti[[#Totals],[Razlika]]+Zajmovi[[#Totals],[Razlika]]+Zabava[[#Totals],[Razlika]]+Porezi[[#Totals],[Razlika]]+Osobna_njega[[#Totals],[Razlika]]+Ljubimci[[#Totals],[Razlika]]+Darovi[[#Totals],[Razlika]]","v":{"v":-114,"d":"(114) kn"}},null,"Prihod 1",{"v":4000,"d":"4,000.00 kn"}]
[{"$nulls":5},"Prihod 2",{"v":1200,"d":"1,200.00 kn"}]
["Kućanstvo","Predviđeni trošak","Stvarni trošak","Razlika",null,"Dodatni prihod",{"v":300,"d":"300.00 kn"}]
["Hipoteka ili najamnina",{"v":1000,"d":"1,000 kn"},{"v":1000,"d":"1,000 kn"},{"$f":"Kućanstvo[Predviđeni trošak]-Kućanstvo[Stvarni trošak]","v":{"v":0,"d":"0 kn"}},null,"Ukupan mjesečni prihod",{"$f":"SUM(G4:G6)","v":{"v":5500,"d":"5,500.00 kn"}}]
["Druga hipoteka ili najamnina",{"v":0,"d":"0 kn"},{"v":0,"d":"0 kn"},{"$f":"Kućanstvo[Predviđeni trošak]-Kućanstvo[Stvarni trošak]","v":{"v":0,"d":"0 kn"}}]
["Telefon",{"v":62,"d":"62 kn"},{"v":100,"d":"100 kn"},{"$f":"Kućanstvo[Predviđeni trošak]-Kućanstvo[Stvarni trošak]","v":{"v":-38,"d":"38 kn"}},null,"Stvarni mjesečni prihod"]
["Struja",{"v":44,"d":"44 kn"},{"v":125,"d":"125 kn"},{"$f":"Kućanstvo[Predviđeni trošak]-Kućanstvo[Stvarni trošak]","v":{"v":-81,"d":"81 kn"}},null,"Prihod 1",{"v":4000,"d":"4,000.00 kn"}]
["Plin",{"v":22,"d":"22 kn"},{"v":35,"d":"35 kn"},{"$f":"Kućanstvo[Predviđeni trošak]-Kućanstvo[Stvarni trošak]","v":{"v":-13,"d":"13 kn"}},null,"Prihod 2",{"v":1200,"d":"1,200.00 kn"}]
["Voda i odvodnja",{"v":8,"d":"8 kn"},{"v":8,"d":"8 kn"},{"$f":"Kućanstvo[Predviđeni trošak]-Kućanstvo[Stvarni trošak]","v":{"v":0,"d":"0 kn"}},null,"Dodatni prihod",{"v":300,"d":"300.00 kn"}]
["Kabelska",{"v":34,"d":"34 kn"},{"v":39,"d":"39 kn"},{"$f":"Kućanstvo[Predviđeni trošak]-Kućanstvo[Stvarni trošak]","v":{"v":-5,"d":"5 kn"}},null,"Ukupan mjesečni prihod",{"$f":"SUM(G10:G12)","v":{"v":5500,"d":"5,500.00 kn"}}]
["Odvoz otpada",{"v":10,"d":"10 kn"},{"v":10,"d":"10 kn"},{"$f":"Kućanstvo[Predviđeni trošak]-Kućanstvo[Stvarni trošak]","v":{"v":0,"d":"0 kn"}}]
["Održavanje ili popravci",{"v":23,"d":"23 kn"},{"v":0,"d":"0 kn"},{"$f":"Kućanstvo[Predviđeni trošak]-Kućanstvo[Stvarni trošak]","v":{"v":23,"d":"23 kn"}},null,"Predviđeni saldo\n",{"$f":"SUM(G7-B4)","v":{"v":4297,"d":"4,297.00 kn"}}]
["Potrepštine",{"v":0,"d":"0 kn"},{"v":0,"d":"0 kn"},{"$f":"Kućanstvo[Predviđeni trošak]-Kućanstvo[Stvarni trošak]","v":{"v":0,"d":"0 kn"}},null,"Stvarni saldo",{"$f":"SUM(G13-C4)","v":{"v":4183,"d":"4,183.00 kn"}}]
["Ostalo",{"v":0,"d":"0 kn"},{"v":0,"d":"0 kn"},{"$f":"Kućanstvo[Predviđeni trošak]-Kućanstvo[Stvarni trošak]","v":{"v":0,"d":"0 kn"}},null,"Razlika",{"$f":"SUM(G16-G15)","v":{"v":-114,"d":"(114) kn"}}]
["Ukupno",{"$f":"SUBTOTAL(109,Kućanstvo[Predviđeni trošak])","v":{"v":1203,"d":"1,203 kn"}},{"$f":"SUBTOTAL(109,Kućanstvo[Stvarni trošak])","v":{"v":1317,"d":"1,317 kn"}},{"$f":"SUBTOTAL(109,Kućanstvo[Razlika])","v":{"v":-114,"d":"114 kn"}}]
[]
["Prijevoz","Predviđeni trošak","Stvarni trošak","Razlika",null,"Zajmovi","Predviđeni trošak","Stvarni trošak","Razlika"]
["Plaćanje za vozilo 1",null,null,{"$f":"Prijevoz[Predviđeni trošak]-Prijevoz[Stvarni trošak]","v":{"v":0,"d":"0 kn"}},null,"Osobno",null,null,{"$f":"Zajmovi[Predviđeni trošak]-Zajmovi[Stvarni trošak]","v":{"v":0,"d":"0 kn"}}]
["Plaćanje za vozilo 2",null,null,{"$f":"Prijevoz[Predviđeni trošak]-Prijevoz[Stvarni trošak]","v":{"v":0,"d":"0 kn"}},null,"Studentski kredit",null,null,{"$f":"Zajmovi[Predviđeni trošak]-Zajmovi[Stvarni trošak]","v":{"v":0,"d":"0 kn"}}]
["Troškovi za autobus/taksi",null,null,{"$f":"Prijevoz[Predviđeni trošak]-Prijevoz[Stvarni trošak]","v":{"v":0,"d":"0 kn"}},null,"Kreditna kartica",null,null,{"$f":"Zajmovi[Predviđeni trošak]-Zajmovi[Stvarni trošak]","v":{"v":0,"d":"0 kn"}}]
["Osiguranje",null,null,{"$f":"Prijevoz[Predviđeni trošak]-Prijevoz[Stvarni trošak]","v":{"v":0,"d":"0 kn"}},null,"Kreditna kartica",null,null,{"$f":"Zajmovi[Predviđeni trošak]-Zajmovi[Stvarni trošak]","v":{"v":0,"d":"0 kn"}}]
["Dozvole",null,null,{"$f":"Prijevoz[Predviđeni trošak]-Prijevoz[Stvarni trošak]","v":{"v":0,"d":"0 kn"}},null,"Kreditna kartica",null,null,{"$f":"Zajmovi[Predviđeni trošak]-Zajmovi[Stvarni trošak]","v":{"v":0,"d":"0 kn"}}]
["Gorivo",null,null,{"$f":"Prijevoz[Predviđeni trošak]-Prijevoz[Stvarni trošak]","v":{"v":0,"d":"0 kn"}},null,"Ostalo",null,null,{"$f":"Zajmovi[Predviđeni trošak]-Zajmovi[Stvarni trošak]","v":{"v":0,"d":"0 kn"}}]
["Održavanje",null,null,{"$f":"Prijevoz[Predviđeni trošak]-Prijevoz[Stvarni trošak]","v":{"v":0,"d":"0 kn"}},null,"Ukupno",{"$f":"SUBTOTAL(109,Zajmovi[Predviđeni trošak])","v":{"v":0,"d":"0 kn"}},{"$f":"SUBTOTAL(109,Zajmovi[Stvarni trošak])","v":{"v":0,"d":"0 kn"}},{"$f":"SUBTOTAL(109,Zajmovi[Razlika])","v":{"v":0,"d":"0 kn"}}]
["Ostalo",null,null,{"$f":"Prijevoz[Predviđeni trošak]-Prijevoz[Stvarni trošak]","v":{"v":0,"d":"0 kn"}}]
["Ukupno",{"$f":"SUBTOTAL(109,Prijevoz[Predviđeni trošak])","v":{"v":0,"d":"0 kn"}},{"$f":"SUBTOTAL(109,Prijevoz[Stvarni trošak])","v":{"v":0,"d":"0 kn"}},{"$f":"SUBTOTAL(109,Prijevoz[Razlika])","v":{"v":0,"d":"0 kn"}},null,"Zabava","Predviđeni trošak","Stvarni trošak","Razlika"]
[{"$nulls":5},"Video/DVD",null,null,{"$f":"Zabava[Predviđeni trošak]-Zabava[Stvarni trošak]","v":{"v":0,"d":"0 kn"}}]
["Osiguranje","Predviđeni trošak","Stvarni trošak","Razlika",null,"CD-ovi",null,null,{"$f":"Zabava[Predviđeni trošak]-Zabava[Stvarni trošak]","v":{"v":0,"d":"0 kn"}}]
["Početna stranica",null,null,{"$f":"Osiguranje[Predviđeni trošak]-Osiguranje[Stvarni trošak]","v":{"v":0,"d":"0 kn"}},null,"Filmovi",null,null,{"$f":"Zabava[Predviđeni trošak]-Zabava[Stvarni trošak]","v":{"v":0,"d":"0 kn"}}]
["Zdravlje",null,null,{"$f":"Osiguranje[Predviđeni trošak]-Osiguranje[Stvarni trošak]","v":{"v":0,"d":"0 kn"}},null,"Koncerti",null,null,{"$f":"Zabava[Predviđeni trošak]-Zabava[Stvarni trošak]","v":{"v":0,"d":"0 kn"}}]
["Život",null,null,{"$f":"Osiguranje[Predviđeni trošak]-Osiguranje[Stvarni trošak]","v":{"v":0,"d":"0 kn"}},null,"Sportski događaji",null,null,{"$f":"Zabava[Predviđeni trošak]-Zabava[Stvarni trošak]","v":{"v":0,"d":"0 kn"}}]
["Ostalo",null,null,{"$f":"Osiguranje[Predviđeni trošak]-Osiguranje[Stvarni trošak]","v":{"v":0,"d":"0 kn"}},null,"Kazalište",null,null,{"$f":"Zabava[Predviđeni trošak]-Zabava[Stvarni trošak]","v":{"v":0,"d":"0 kn"}}]
["Ukupno",{"$f":"SUBTOTAL(109,Osiguranje[Predviđeni trošak])","v":{"v":0,"d":"0 kn"}},{"$f":"SUBTOTAL(109,Osiguranje[Stvarni trošak])","v":{"v":0,"d":"0 kn"}},{"$f":"SUBTOTAL(109,Osiguranje[Razlika])","v":{"v":0,"d":"0 kn"}},null,"Ostalo",null,null,{"$f":"Zabava[Predviđeni trošak]-Zabava[Stvarni trošak]","v":{"v":0,"d":"0 kn"}}]
[{"$nulls":5},"Ukupno",{"$f":"SUBTOTAL(109,Zabava[Predviđeni trošak])","v":{"v":0,"d":"0 kn"}},{"$f":"SUBTOTAL(109,Zabava[Stvarni trošak])","v":{"v":0,"d":"0 kn"}},{"$f":"SUBTOTAL(109,Zabava[Razlika])","v":{"v":0,"d":"0 kn"}}]
["Hrana","Predviđeni trošak","Stvarni trošak","Razlika"]
["Namirnice",null,null,{"$f":"Hrana[Predviđeni trošak]-Hrana[Stvarni trošak]","v":{"v":0,"d":"0 kn"}},null,"Porezi","Predviđeni trošak","Stvarni trošak","Razlika"]
["Večere izvan kuće",null,null,{"$f":"Hrana[Predviđeni trošak]-Hrana[Stvarni trošak]","v":{"v":0,"d":"0 kn"}},null,"Federalni",null,null,{"$f":"Porezi[Predviđeni trošak]-Porezi[Stvarni trošak]","v":{"v":0,"d":"0 kn"}}]
["Ostalo",null,null,{"$f":"Hrana[Predviđeni trošak]-Hrana[Stvarni trošak]","v":{"v":0,"d":"0 kn"}},null,"Državni",null,null,{"$f":"Porezi[Predviđeni trošak]-Porezi[Stvarni trošak]","v":{"v":0,"d":"0 kn"}}]
["Ukupno",{"$f":"SUBTOTAL(109,Hrana[Predviđeni trošak])","v":{"v":0,"d":"0 kn"}},{"$f":"SUBTOTAL(109,Hrana[Stvarni trošak])","v":{"v":0,"d":"0 kn"}},{"$f":"SUBTOTAL(109,Hrana[Razlika])","v":{"v":0,"d":"0 kn"}},null,"Lokalni",null,null,{"$f":"Porezi[Predviđeni trošak]-Porezi[Stvarni trošak]","v":{"v":0,"d":"0 kn"}}]
[{"$nulls":5},"Ostalo",null,null,{"$f":"Porezi[Predviđeni trošak]-Porezi[Stvarni trošak]","v":{"v":0,"d":"0 kn"}}]
["Djeca","Predviđeni trošak","Stvarni trošak","Razlika",null,"Ukupno",{"$f":"SUBTOTAL(109,Porezi[Predviđeni trošak])","v":{"v":0,"d":"0 kn"}},{"$f":"SUBTOTAL(109,Porezi[Stvarni trošak])","v":{"v":0,"d":"0 kn"}},{"$f":"SUBTOTAL(109,Porezi[Razlika])","v":{"v":0,"d":"0 kn"}}]
["Zdravstveno",null,null,{"$f":"Djeca[Predviđeni trošak]-Djeca[Stvarni trošak]","v":{"v":0,"d":"0 kn"}}]
["Odjeća",null,null,{"$f":"Djeca[Predviđeni trošak]-Djeca[Stvarni trošak]","v":{"v":0,"d":"0 kn"}},null,"Osobna njega","Predviđeni trošak","Stvarni trošak","Razlika"]
["Školarina",null,null,{"$f":"Djeca[Predviđeni trošak]-Djeca[Stvarni trošak]","v":{"v":0,"d":"0 kn"}},null,"Zdravstveno",null,null,{"$f":"Osobna_njega[Predviđeni trošak]-Osobna_njega[Stvarni trošak]","v":{"v":0,"d":"0 kn"}}]
["Školski pribor",null,null,{"$f":"Djeca[Predviđeni trošak]-Djeca[Stvarni trošak]","v":{"v":0,"d":"0 kn"}},null,"Kosa/nokti",null,null,{"$f":"Osobna_njega[Predviđeni trošak]-Osobna_njega[Stvarni trošak]","v":{"v":0,"d":"0 kn"}}]
["Pristojbe i članarine",null,null,{"$f":"Djeca[Predviđeni trošak]-Djeca[Stvarni trošak]","v":{"v":0,"d":"0 kn"}},null,"Odjeća",null,null,{"$f":"Osobna_njega[Predviđeni trošak]-Osobna_njega[Stvarni trošak]","v":{"v":0,"d":"0 kn"}}]
["Novac za ručak",null,null,{"$f":"Djeca[Predviđeni trošak]-Djeca[Stvarni trošak]","v":{"v":0,"d":"0 kn"}},null,"Kemijsko čišćenje",null,null,{"$f":"Osobna_njega[Predviđeni trošak]-Osobna_njega[Stvarni trošak]","v":{"v":0,"d":"0 kn"}}]
["Briga za djecu",null,null,{"$f":"Djeca[Predviđeni trošak]-Djeca[Stvarni trošak]","v":{"v":0,"d":"0 kn"}},null,"Teretana",null,null,{"$f":"Osobna_njega[Predviđeni trošak]-Osobna_njega[Stvarni trošak]","v":{"v":0,"d":"0 kn"}}]
["Igračke/igre",null,null,{"$f":"Djeca[Predviđeni trošak]-Djeca[Stvarni trošak]","v":{"v":0,"d":"0 kn"}},null,"Organizacijske pristojbe/naknade",null,null,{"$f":"Osobna_njega[Predviđeni trošak]-Osobna_njega[Stvarni trošak]","v":{"v":0,"d":"0 kn"}}]
["Ostalo",null,null,{"$f":"Djeca[Predviđeni trošak]-Djeca[Stvarni trošak]","v":{"v":0,"d":"0 kn"}},null,"Ostalo",null,null,{"$f":"Osobna_njega[Predviđeni trošak]-Osobna_njega[Stvarni trošak]","v":{"v":0,"d":"0 kn"}}]
["Ukupno",{"$f":"SUBTOTAL(109,Djeca[Predviđeni trošak])","v":{"v":0,"d":"0 kn"}},{"$f":"SUBTOTAL(109,Djeca[Stvarni trošak])","v":{"v":0,"d":"0 kn"}},{"$f":"SUBTOTAL(109,Djeca[Razlika])","v":{"v":0,"d":"0 kn"}},null,"Ukupno",{"$f":"SUBTOTAL(109,Osobna_njega[Predviđeni trošak])","v":{"v":0,"d":"0 kn"}},{"$f":"SUBTOTAL(109,Osobna_njega[Stvarni trošak])","v":{"v":0,"d":"0 kn"}},{"$f":"SUBTOTAL(109,Osobna_njega[Razlika])","v":{"v":0,"d":"0 kn"}}]
[]
["Pravni savjeti","Predviđeni trošak","Stvarni trošak","Razlika",null,"Ljubimci","Predviđeni trošak","Stvarni trošak","Razlika"]
["Odvjetnik",null,null,{"$f":"Pravni_savjeti[Predviđeni trošak]-Pravni_savjeti[Stvarni trošak]","v":{"v":0,"d":"0 kn"}},null,"Hrana",null,null,{"$f":"Ljubimci[Predviđeni trošak]-Ljubimci[Stvarni trošak]","v":{"v":0,"d":"0 kn"}}]
["Alimentacija",null,null,{"$f":"Pravni_savjeti[Predviđeni trošak]-Pravni_savjeti[Stvarni trošak]","v":{"v":0,"d":"0 kn"}},null,"Zdravstveno",null,null,{"$f":"Ljubimci[Predviđeni trošak]-Ljubimci[Stvarni trošak]","v":{"v":0,"d":"0 kn"}}]
["Plaćanja",null,null,{"$f":"Pravni_savjeti[Predviđeni trošak]-Pravni_savjeti[Stvarni trošak]","v":{"v":0,"d":"0 kn"}},null,"Uređivanje",null,null,{"$f":"Ljubimci[Predviđeni trošak]-Ljubimci[Stvarni trošak]","v":{"v":0,"d":"0 kn"}}]
["Ostalo",null,null,{"$f":"Pravni_savjeti[Predviđeni trošak]-Pravni_savjeti[Stvarni trošak]","v":{"v":0,"d":"0 kn"}},null,"Igračke",null,null,{"$f":"Ljubimci[Predviđeni trošak]-Ljubimci[Stvarni trošak]","v":{"v":0,"d":"0 kn"}}]
["Ukupno",{"$f":"SUBTOTAL(109,Pravni_savjeti[Predviđeni trošak])","v":{"v":0,"d":"0 kn"}},{"$f":"SUBTOTAL(109,Pravni_savjeti[Stvarni trošak])","v":{"v":0,"d":"0 kn"}},{"$f":"SUBTOTAL(109,Pravni_savjeti[Razlika])","v":{"v":0,"d":"0 kn"}},null,"Ostalo",null,null,{"$f":"Ljubimci[Predviđeni trošak]-Ljubimci[Stvarni trošak]","v":{"v":0,"d":"0 kn"}}]
[{"$nulls":5},"Ukupno",{"$f":"SUBTOTAL(109,Ljubimci[Predviđeni trošak])","v":{"v":0,"d":"0 kn"}},{"$f":"SUBTOTAL(109,Ljubimci[Stvarni trošak])","v":{"v":0,"d":"0 kn"}},{"$f":"SUBTOTAL(109,Ljubimci[Razlika])","v":{"v":0,"d":"0 kn"}}]
["Štednja/investicije","Predviđeni trošak","Stvarni trošak","Razlika"]
["Mirovinski fond",null,null,{"$f":"Štednja[Predviđeni trošak]-Štednja[Stvarni trošak]","v":{"v":0,"d":"0.00 kn"}},null,"Darovanja i donacije","Predviđeni trošak","Stvarni trošak","Razlika"]
["Investicijski fond",null,null,{"$f":"Štednja[Predviđeni trošak]-Štednja[Stvarni trošak]","v":{"v":0,"d":"0.00 kn"}},null,"Dobrotvorna ustanova 1",null,null,{"$f":"Darovi[Predviđeni trošak]-Darovi[Stvarni trošak]","v":{"v":0,"d":"0.00 kn"}}]
["Školovanje",null,null,{"$f":"Štednja[Predviđeni trošak]-Štednja[Stvarni trošak]","v":{"v":0,"d":"0.00 kn"}},null,"Dobrotvorna ustanova 2",null,null,{"$f":"Darovi[Predviđeni trošak]-Darovi[Stvarni trošak]","v":{"v":0,"d":"0.00 kn"}}]
["Ostalo",null,null,{"$f":"Štednja[Predviđeni trošak]-Štednja[Stvarni trošak]","v":{"v":0,"d":"0.00 kn"}},null,"Dobrotvorna ustanova 3",null,null,{"$f":"Darovi[Predviđeni trošak]-Darovi[Stvarni trošak]","v":{"v":0,"d":"0.00 kn"}}]
["Ukupno",{"$f":"SUBTOTAL(109,Štednja[Predviđeni trošak])","v":{"v":0,"d":"0 kn"}},{"$f":"SUBTOTAL(109,Štednja[Stvarni trošak])","v":{"v":0,"d":"0 kn"}},{"$f":"SUBTOTAL(109,Štednja[Razlika])","v":{"v":0,"d":"0 kn"}},null,"Ukupno",{"$f":"SUBTOTAL(109,Darovi[Predviđeni trošak])","v":{"v":0,"d":"0 kn"}},{"$f":"SUBTOTAL(109,Darovi[Stvarni trošak])","v":{"v":0,"d":"0 kn"}},{"$f":"SUBTOTAL(109,Darovi[Razlika])","v":{"v":0,"d":"0 kn"}}]